[Event "Titled Tuesday Blitz April 12 Early 2022"]
[White "Pourkashiyan, Atousa"]
[Black "Agibileg, Uurtsaikh"]
[WhiteFideId "12502014"]
[BlackFideId "4901606"]
[WhiteElo "2247"]
[BlackElo "2205"]
[Result "0-1"]
[Round "04"]
[TimeControl "180+1"]
[Date "2022.04.13"]
[WhiteClock "0:00:11"]
[BlackClock "0:02:22"]

1. e4 {[%clk 0:02:56]}  c5 {[%clk 0:02:59]} 2. Nf3 {[%clk 0:02:55]}  e6 {[%clk 0:02:59]} 3. d4 {[%clk 0:02:55]}  cxd4 {[%clk 0:03:00]} 4. Nxd4 {[%clk 0:02:55]}  Nc6 {[%clk 0:03:01]} 5. Nc3 {[%clk 0:02:54]}  a6 {[%clk 0:03:01]} 6. Nxc6 {[%clk 0:02:52]}  bxc6 {[%clk 0:03:02]} 7. Bd3 {[%clk 0:02:52]}  d5 {[%clk 0:03:03]} 8. O-O {[%clk 0:02:52]}  Nf6 {[%clk 0:03:03]} 9. Qe2 {[%clk 0:02:41]}  Be7 {[%clk 0:03:03]} 10. Bd2 {[%clk 0:02:37]}  O-O {[%clk 0:03:02]} 11. Rae1 {[%clk 0:02:30]}  Bb7 {[%clk 0:03:00]} 12. e5 {[%clk 0:02:13]}  Nd7 {[%clk 0:02:59]} 13. Qh5 {[%clk 0:02:13]}  g6 {[%clk 0:03:00]} 14. Qh6 {[%clk 0:02:13]}  c5 {[%clk 0:02:56]} 15. b3 {[%clk 0:01:33]}  Re8 {[%clk 0:02:52]} 16. f4 {[%clk 0:01:29]}  Bf8 {[%clk 0:02:48]} 17. Qh3 {[%clk 0:01:28]}  Nb6 {[%clk 0:02:43]} 18. Kh1 {[%clk 0:01:22]}  c4 {[%clk 0:02:43]} 19. Be2 {[%clk 0:01:23]}  d4 {[%clk 0:02:43]} 20. Na4 {[%clk 0:01:14]}  Nxa4 {[%clk 0:02:43]} 21. bxa4 {[%clk 0:01:14]}  Rc8 {[%clk 0:02:33]} 22. Bf3 {[%clk 0:01:11]}  Bxf3 {[%clk 0:02:33]} 23. Qxf3 {[%clk 0:01:12]}  Qd7 {[%clk 0:02:33]} 24. a5 {[%clk 0:01:06]}  Qa4 {[%clk 0:02:32]} 25. Qg4 {[%clk 0:00:49]}  Qxc2 {[%clk 0:02:30]} 26. Bc1 {[%clk 0:00:42]}  c3 {[%clk 0:02:27]} 27. Re2 {[%clk 0:00:25]}  Qd3 {[%clk 0:02:27]} 28. Ref2 {[%clk 0:00:23]}  Qe4 {[%clk 0:02:25]} 29. Re2 {[%clk 0:00:22]}  Qd3 {[%clk 0:02:26]} 30. Ref2 {[%clk 0:00:23]}  Qc4 {[%clk 0:02:26]} 31. f5 {[%clk 0:00:22]}  exf5 {[%clk 0:02:26]} 32. Rxf5 {[%clk 0:00:23]}  d3 {[%clk 0:02:26]} 33. R5f4 {[%clk 0:00:21]}  Qxa2 {[%clk 0:02:25]} 34. Rxf7 {[%clk 0:00:18]}  d2 {[%clk 0:02:23]} 35. Qh4 {[%clk 0:00:11]}  Qxf7 {[%clk 0:02:22]} 36. Rxf7 {[%clk 0:00:11]}  dxc1=Q+ {[%clk 0:02:22]} 0-1


[Site "https://www.chess.com"]

[Event "Titled Tuesday Blitz April 12 Early 2022"]
[White "Rodrigues Mota, Romulo Cardoso S"]
[Black "Tuleyeva-Aketayeva, Dana"]
[WhiteFideId "2187442"]
[BlackFideId "13701932"]
[WhiteElo "1851"]
[BlackElo "1875"]
[Result "1-0"]
[Round "04"]
[TimeControl "180+1"]
[Date "2022.04.13"]
[WhiteClock "0:02:15"]
[BlackClock "0:00:01"]

1. e4 {[%clk 0:03:00]}  c5 {[%clk 0:03:00]} 2. Nf3 {[%clk 0:03:01]}  Nc6 {[%clk 0:02:59]} 3. d4 {[%clk 0:03:01]}  cxd4 {[%clk 0:02:59]} 4. Nxd4 {[%clk 0:03:02]}  g6 {[%clk 0:02:59]} 5. Nc3 {[%clk 0:03:02]}  Bg7 {[%clk 0:02:59]} 6. Be3 {[%clk 0:03:02]}  Nf6 {[%clk 0:02:58]} 7. f3 {[%clk 0:03:03]}  O-O {[%clk 0:02:47]} 8. Qd2 {[%clk 0:03:00]}  d5 {[%clk 0:02:48]} 9. O-O-O {[%clk 0:02:46]}  Nxd4 {[%clk 0:02:18]} 10. Qxd4 {[%clk 0:02:35]}  Ng4 {[%clk 0:01:10]} 11. Qxd5 {[%clk 0:02:28]}  Qxd5 {[%clk 0:01:06]} 12. Nxd5 {[%clk 0:02:29]}  Nxe3 {[%clk 0:01:05]} 13. Nxe3 {[%clk 0:02:29]}  Bh6 {[%clk 0:01:04]} 14. Re1 {[%clk 0:02:30]}  f5 {[%clk 0:01:01]} 15. Bc4+ {[%clk 0:02:30]}  Kh8 {[%clk 0:00:58]} 16. exf5 {[%clk 0:02:29]}  Bxf5 {[%clk 0:00:57]} 17. Kb1 {[%clk 0:02:29]}  Bd7 {[%clk 0:00:13]} 18. Nd5 {[%clk 0:02:28]}  b5 {[%clk 0:00:08]} 19. Rxe7 {[%clk 0:02:27]}  bxc4 {[%clk 0:00:07]} 20. Rxd7 {[%clk 0:02:27]}  Rad8 {[%clk 0:00:07]} 21. Rxd8 {[%clk 0:02:26]}  Rxd8 {[%clk 0:00:08]} 22. Rd1 {[%clk 0:02:27]}  Bf4 {[%clk 0:00:04]} 23. b3 {[%clk 0:02:26]}  Bxh2 {[%clk 0:00:03]} 24. bxc4 {[%clk 0:02:25]}  Be5 {[%clk 0:00:02]} 25. c5 {[%clk 0:02:25]}  Rb8+ {[%clk 0:00:01]} 26. Kc1 {[%clk 0:02:25]}  Bb2+ {[%clk 0:00:01]} 27. Kd2 {[%clk 0:02:25]}  Rd8 {[%clk 0:00:02]} 28. c4 {[%clk 0:02:24]}  Ba3 {[%clk 0:00:02]} 29. c6 {[%clk 0:02:23]}  Bc5 {[%clk 0:00:02]} 30. Kd3 {[%clk 0:02:23]}  Bd6 {[%clk 0:00:01]} 31. Rb1 {[%clk 0:02:22]}  Rc8 {[%clk 0:00:01]} 32. c5 {[%clk 0:02:15]} 1-0


[Site "https://www.chess.com"]

[Event "Titled Tuesday Blitz April 12 Early 2022"]
[White "Samant Aditya S"]
[Black "Ferreira, Vitor Hugo Vieira"]
[WhiteFideId "35080580"]
[BlackFideId "2119765"]
[WhiteElo "1916"]
[BlackElo "2165"]
[Result "0-1"]
[Round "04"]
[TimeControl "180+1"]
[Date "2022.04.13"]
[WhiteClock "0:00:05"]
[BlackClock "0:00:04"]

1. d4 {[%clk 0:03:00]}  Nf6 {[%clk 0:02:58]} 2. c4 {[%clk 0:03:01]}  g6 {[%clk 0:02:58]} 3. Nc3 {[%clk 0:03:01]}  d5 {[%clk 0:02:59]} 4. cxd5 {[%clk 0:03:01]}  Nxd5 {[%clk 0:02:59]} 5. e4 {[%clk 0:03:02]}  Nxc3 {[%clk 0:02:59]} 6. bxc3 {[%clk 0:03:03]}  Bg7 {[%clk 0:02:59]} 7. Nf3 {[%clk 0:03:03]}  O-O {[%clk 0:02:58]} 8. Rb1 {[%clk 0:03:00]}  c5 {[%clk 0:02:58]} 9. Be2 {[%clk 0:03:00]}  Nc6 {[%clk 0:02:56]} 10. d5 {[%clk 0:03:00]}  Na5 {[%clk 0:02:53]} 11. c4 {[%clk 0:02:53]}  b6 {[%clk 0:02:53]} 12. O-O {[%clk 0:02:53]}  e6 {[%clk 0:02:48]} 13. Bd2 {[%clk 0:02:41]}  exd5 {[%clk 0:02:45]} 14. cxd5 {[%clk 0:02:26]}  Nb7 {[%clk 0:02:41]} 15. Bf4 {[%clk 0:02:07]}  Re8 {[%clk 0:02:37]} 16. Nd2 {[%clk 0:01:35]}  Nd6 {[%clk 0:02:29]} 17. f3 {[%clk 0:01:20]}  Qf6 {[%clk 0:01:51]} 18. Bg3 {[%clk 0:01:13]}  Qd4+ {[%clk 0:01:32]} 19. Kh1 {[%clk 0:01:04]}  Be5 {[%clk 0:01:30]} 20. Bf2 {[%clk 0:00:47]}  Qc3 {[%clk 0:01:21]} 21. Rb3 {[%clk 0:00:30]}  Qa5 {[%clk 0:01:20]} 22. Be3 {[%clk 0:00:26]}  Ba6 {[%clk 0:01:13]} 23. f4 {[%clk 0:00:23]}  Bxe2 {[%clk 0:01:02]} 24. Qxe2 {[%clk 0:00:24]}  Bg7 {[%clk 0:00:54]} 25. e5 {[%clk 0:00:22]}  Nf5 {[%clk 0:00:53]} 26. Nc4 {[%clk 0:00:18]}  Qa6 {[%clk 0:00:49]} 27. Qc2 {[%clk 0:00:17]}  b5 {[%clk 0:00:43]} 28. Ra3 {[%clk 0:00:09]}  Qb7 {[%clk 0:00:35]} 29. Nd2 {[%clk 0:00:06]}  Nxe3 {[%clk 0:00:31]} 30. Rxe3 {[%clk 0:00:05]}  Qxd5 {[%clk 0:00:31]} 31. Ne4 {[%clk 0:00:05]}  c4 {[%clk 0:00:29]} 32. Rd1 {[%clk 0:00:05]}  Qe6 {[%clk 0:00:24]} 33. Nd6 {[%clk 0:00:05]}  Red8 {[%clk 0:00:23]} 34. Rde1 {[%clk 0:00:05]}  Bf8 {[%clk 0:00:21]} 35. Nxb5 {[%clk 0:00:05]}  Rac8 {[%clk 0:00:16]} 36. Re4 {[%clk 0:00:05]}  c3 {[%clk 0:00:16]} 37. Nd4 {[%clk 0:00:05]}  Qb6 {[%clk 0:00:14]} 38. Nf3 {[%clk 0:00:05]}  Bc5 {[%clk 0:00:12]} 39. R4e2 {[%clk 0:00:04]}  Bb4 {[%clk 0:00:11]} 40. Ng5 {[%clk 0:00:05]}  h6 {[%clk 0:00:11]} 41. Ne4 {[%clk 0:00:05]}  Be7 {[%clk 0:00:10]} 42. h3 {[%clk 0:00:04]}  Qa5 {[%clk 0:00:10]} 43. Kh2 {[%clk 0:00:04]}  Rd7 {[%clk 0:00:08]} 44. Nf2 {[%clk 0:00:04]}  Rdc7 {[%clk 0:00:09]} 45. Ne4 {[%clk 0:00:04]}  Qd5 {[%clk 0:00:08]} 46. Rd1 {[%clk 0:00:04]}  Qe6 {[%clk 0:00:08]} 47. Rde1 {[%clk 0:00:04]}  Kg7 {[%clk 0:00:08]} 48. g3 {[%clk 0:00:04]}  h5 {[%clk 0:00:08]} 49. Nf2 {[%clk 0:00:05]}  h4 {[%clk 0:00:08]} 50. g4 {[%clk 0:00:06]}  g5 {[%clk 0:00:08]} 51. f5 {[%clk 0:00:06]}  Qb6 {[%clk 0:00:07]} 52. f6+ {[%clk 0:00:06]}  Bxf6 {[%clk 0:00:08]} 53. exf6+ {[%clk 0:00:07]}  Qxf6 {[%clk 0:00:08]} 54. Ne4 {[%clk 0:00:07]}  Qf4+ {[%clk 0:00:09]} 55. Kg2 {[%clk 0:00:08]}  Rd7 {[%clk 0:00:08]} 56. Rf2 {[%clk 0:00:08]}  Qe5 {[%clk 0:00:07]} 57. Ref1 {[%clk 0:00:07]}  Rcd8 {[%clk 0:00:05]} 58. Nf6 {[%clk 0:00:06]}  Rd2 {[%clk 0:00:04]} 59. Qh7+ {[%clk 0:00:07]}  Kf8 {[%clk 0:00:04]} 60. Qh6+ {[%clk 0:00:07]}  Ke7 {[%clk 0:00:05]} 61. Nh5 {[%clk 0:00:04]}  Qe4+ {[%clk 0:00:04]} 62. Kh2 {[%clk 0:00:04]}  Qe5+ {[%clk 0:00:03]} 63. Kg1 {[%clk 0:00:04]}  Rxf2 {[%clk 0:00:03]} 64. Rxf2 {[%clk 0:00:04]}  Rd1+ {[%clk 0:00:03]} 65. Kg2 {[%clk 0:00:03]}  Qe4+ {[%clk 0:00:04]} 66. Rf3 {[%clk 0:00:03]}  Rd2+ {[%clk 0:00:04]} 67. Kg1 {[%clk 0:00:04]}  Qe1+ {[%clk 0:00:03]} 68. Rf1 {[%clk 0:00:04]}  Qe3+ {[%clk 0:00:03]} 69. Kh1 {[%clk 0:00:05]}  Qxh3+ {[%clk 0:00:03]} 70. Kg1 {[%clk 0:00:05]}  Qh2# {[%clk 0:00:04]} 0-1


[Site "https://www.chess.com"]

[Event "Titled Tuesday Blitz April 12 Early 2022"]
[White "Sarana, Alexey"]
[Black "Pranav, V"]
[WhiteFideId "24133795"]
[BlackFideId "25060783"]
[WhiteElo "2666"]
[BlackElo "2349"]
[Result "1-0"]
[Round "04"]
[TimeControl "180+1"]
[Date "2022.04.12"]
[WhiteClock "0:00:38"]
[BlackClock "0:00:01"]

1. d4 {[%clk 0:03:00]}  d5 {[%clk 0:02:57]} 2. c4 {[%clk 0:03:00]}  e6 {[%clk 0:02:58]} 3. Nc3 {[%clk 0:03:01]}  Be7 {[%clk 0:02:58]} 4. cxd5 {[%clk 0:03:00]}  exd5 {[%clk 0:02:58]} 5. Bf4 {[%clk 0:03:01]}  Nf6 {[%clk 0:02:57]} 6. e3 {[%clk 0:03:00]}  c6 {[%clk 0:02:57]} 7. Bd3 {[%clk 0:03:01]}  Bg4 {[%clk 0:02:57]} 8. Nge2 {[%clk 0:02:58]}  O-O {[%clk 0:02:55]} 9. O-O {[%clk 0:02:56]}  Re8 {[%clk 0:02:50]} 10. Qc2 {[%clk 0:02:55]}  Bh5 {[%clk 0:02:49]} 11. Ng3 {[%clk 0:02:52]}  Bg6 {[%clk 0:02:48]} 12. Nf5 {[%clk 0:02:52]}  Bf8 {[%clk 0:02:47]} 13. h3 {[%clk 0:02:52]}  Na6 {[%clk 0:02:47]} 14. a3 {[%clk 0:02:52]}  c5 {[%clk 0:02:47]} 15. Ng3 {[%clk 0:02:29]}  Rc8 {[%clk 0:02:43]} 16. Bxg6 {[%clk 0:02:10]}  hxg6 {[%clk 0:02:44]} 17. Rad1 {[%clk 0:02:05]}  cxd4 {[%clk 0:02:42]} 18. Rxd4 {[%clk 0:02:04]}  Nc5 {[%clk 0:02:42]} 19. Bg5 {[%clk 0:02:00]}  Ne6 {[%clk 0:02:19]} 20. Bxf6 {[%clk 0:01:59]}  gxf6 {[%clk 0:02:19]} 21. Rxd5 {[%clk 0:01:56]}  Qxd5 {[%clk 0:01:47]} 22. Nxd5 {[%clk 0:01:57]}  Rxc2 {[%clk 0:01:47]} 23. Nxf6+ {[%clk 0:01:58]}  Kh8 {[%clk 0:01:47]} 24. Nxe8 {[%clk 0:01:59]}  Rxb2 {[%clk 0:01:48]} 25. a4 {[%clk 0:01:57]}  Be7 {[%clk 0:01:41]} 26. Rd1 {[%clk 0:01:54]}  Kg8 {[%clk 0:01:30]} 27. Ne4 {[%clk 0:01:53]}  f5 {[%clk 0:00:52]} 28. Nc3 {[%clk 0:01:38]}  Kf8 {[%clk 0:00:41]} 29. Nd6 {[%clk 0:01:38]}  Rc2 {[%clk 0:00:41]} 30. Ncb5 {[%clk 0:01:15]}  a6 {[%clk 0:00:39]} 31. Nd4 {[%clk 0:01:14]}  Nxd4 {[%clk 0:00:38]} 32. Rxd4 {[%clk 0:01:15]}  b6 {[%clk 0:00:39]} 33. g4 {[%clk 0:01:08]}  fxg4 {[%clk 0:00:34]} 34. hxg4 {[%clk 0:01:09]}  Rc6 {[%clk 0:00:30]} 35. Nc4 {[%clk 0:01:06]}  b5 {[%clk 0:00:30]} 36. axb5 {[%clk 0:01:05]}  axb5 {[%clk 0:00:30]} 37. Ne5 {[%clk 0:01:05]}  Re6 {[%clk 0:00:30]} 38. Rd5 {[%clk 0:01:02]}  b4 {[%clk 0:00:30]} 39. Rb5 {[%clk 0:01:03]}  Kg7 {[%clk 0:00:14]} 40. Kg2 {[%clk 0:01:01]}  Bd6 {[%clk 0:00:10]} 41. Nc4 {[%clk 0:01:00]}  Bf8 {[%clk 0:00:09]} 42. Kf3 {[%clk 0:00:59]}  Rc6 {[%clk 0:00:09]} 43. Rb7+ {[%clk 0:00:58]}  Kf6 {[%clk 0:00:09]} 44. Nd2 {[%clk 0:00:57]}  Ke6 {[%clk 0:00:07]} 45. Nb3 {[%clk 0:00:56]}  Rc8 {[%clk 0:00:04]} 46. Ke4 {[%clk 0:00:55]}  Kf6 {[%clk 0:00:02]} 47. f4 {[%clk 0:00:54]}  Re8+ {[%clk 0:00:03]} 48. Kf3 {[%clk 0:00:54]}  g5 {[%clk 0:00:03]} 49. Rb6+ {[%clk 0:00:52]}  Re6 {[%clk 0:00:02]} 50. fxg5+ {[%clk 0:00:45]}  Kf7 {[%clk 0:00:01]} 51. Rb5 {[%clk 0:00:44]}  Kg6 {[%clk 0:00:01]} 52. Nd4 {[%clk 0:00:44]}  Ra6 {[%clk 0:00:01]} 53. Ne2 {[%clk 0:00:44]}  Be7 {[%clk 0:00:01]} 54. Nf4+ {[%clk 0:00:44]}  Kg7 {[%clk 0:00:02]} 55. Rb7 {[%clk 0:00:44]}  Kf8 {[%clk 0:00:01]} 56. g6 {[%clk 0:00:44]}  Bf6 {[%clk 0:00:01]} 57. Nh5 {[%clk 0:00:39]}  Be5 {[%clk 0:00:01]} 58. g7+ {[%clk 0:00:39]}  Kg8 {[%clk 0:00:01]} 59. Ke4 {[%clk 0:00:38]} 1-0


[Site "https://www.chess.com"]

[Event "Titled Tuesday Blitz April 12 Early 2022"]
[White "Shimanov, Aleksandr"]
[Black "Grischuk, Alexander"]
[WhiteFideId "4198603"]
[BlackFideId "4126025"]
[WhiteElo "2636"]
[BlackElo "2762"]
[Result "1/2-1/2"]
[Round "04"]
[TimeControl "180+1"]
[Date "2022.04.12"]
[WhiteClock "0:00:03"]
[BlackClock "0:00:02"]

1. d4 {[%clk 0:03:00]}  e6 {[%clk 0:02:58]} 2. Bf4 {[%clk 0:02:58]}  d5 {[%clk 0:02:52]} 3. Nc3 {[%clk 0:02:58]}  Bd6 {[%clk 0:02:51]} 4. Qd2 {[%clk 0:02:55]}  Nf6 {[%clk 0:02:48]} 5. O-O-O {[%clk 0:02:52]}  O-O {[%clk 0:02:47]} 6. Nf3 {[%clk 0:02:31]}  b5 {[%clk 0:02:38]} 7. Bxd6 {[%clk 0:02:17]}  cxd6 {[%clk 0:02:39]} 8. Nxb5 {[%clk 0:02:15]}  Ne4 {[%clk 0:02:35]} 9. Qe1 {[%clk 0:02:12]}  Nc6 {[%clk 0:02:28]} 10. e3 {[%clk 0:02:09]}  Rb8 {[%clk 0:02:28]} 11. Nd2 {[%clk 0:01:56]}  Qb6 {[%clk 0:02:12]} 12. Nxe4 {[%clk 0:01:55]}  dxe4 {[%clk 0:02:12]} 13. Qc3 {[%clk 0:01:37]}  Ba6 {[%clk 0:02:02]} 14. a4 {[%clk 0:01:24]}  Na5 {[%clk 0:01:28]} 15. Qc7 {[%clk 0:01:12]}  Qxc7 {[%clk 0:01:24]} 16. Nxc7 {[%clk 0:01:13]}  Bxf1 {[%clk 0:01:20]} 17. Rhxf1 {[%clk 0:01:14]}  Rb6 {[%clk 0:01:13]} 18. Nb5 {[%clk 0:01:11]}  a6 {[%clk 0:01:10]} 19. Na3 {[%clk 0:01:06]}  d5 {[%clk 0:01:05]} 20. b3 {[%clk 0:01:01]}  Nc6 {[%clk 0:01:02]} 21. Kb2 {[%clk 0:00:58]}  Rc8 {[%clk 0:00:51]} 22. Rd2 {[%clk 0:00:58]}  Nb4 {[%clk 0:00:51]} 23. c3 {[%clk 0:00:48]}  Nd3+ {[%clk 0:00:50]} 24. Rxd3 {[%clk 0:00:48]}  exd3 {[%clk 0:00:51]} 25. Rd1 {[%clk 0:00:49]}  h5 {[%clk 0:00:30]} 26. Rxd3 {[%clk 0:00:48]}  h4 {[%clk 0:00:31]} 27. h3 {[%clk 0:00:46]}  g5 {[%clk 0:00:29]} 28. b4 {[%clk 0:00:44]}  Kg7 {[%clk 0:00:29]} 29. a5 {[%clk 0:00:44]}  Rbc6 {[%clk 0:00:25]} 30. Nc2 {[%clk 0:00:42]}  Kg6 {[%clk 0:00:24]} 31. Na1 {[%clk 0:00:41]}  Kf5 {[%clk 0:00:21]} 32. f3 {[%clk 0:00:41]}  Kf6 {[%clk 0:00:13]} 33. Nb3 {[%clk 0:00:40]}  Ke7 {[%clk 0:00:13]} 34. Nc5 {[%clk 0:00:41]}  Rd8 {[%clk 0:00:13]} 35. e4 {[%clk 0:00:38]}  f6 {[%clk 0:00:11]} 36. Re3 {[%clk 0:00:38]}  Kf7 {[%clk 0:00:10]} 37. exd5 {[%clk 0:00:35]}  Rxd5 {[%clk 0:00:09]} 38. Kc2 {[%clk 0:00:19]}  e5 {[%clk 0:00:08]} 39. dxe5 {[%clk 0:00:20]}  Rxe5 {[%clk 0:00:04]} 40. Rxe5 {[%clk 0:00:18]}  fxe5 {[%clk 0:00:05]} 41. Kd3 {[%clk 0:00:17]}  Rd6+ {[%clk 0:00:05]} 42. Ke2 {[%clk 0:00:14]}  Kg6 {[%clk 0:00:04]} 43. Ne4 {[%clk 0:00:14]}  Rd8 {[%clk 0:00:03]} 44. Nc5 {[%clk 0:00:12]}  Rd6 {[%clk 0:00:03]} 45. Ne4 {[%clk 0:00:09]}  Rd8 {[%clk 0:00:03]} 46. c4 {[%clk 0:00:10]}  Rd4 {[%clk 0:00:03]} 47. Nd2 {[%clk 0:00:03]}  Kf5 {[%clk 0:00:03]} 48. Ke3 {[%clk 0:00:03]}  Ke6 {[%clk 0:00:01]} 49. Ke2 {[%clk 0:00:03]}  Kf5 {[%clk 0:00:01]} 50. Ke3 {[%clk 0:00:03]}  Ke6 {[%clk 0:00:02]} 51. Ke2 {[%clk 0:00:03]}  Kf5 {[%clk 0:00:02]} 1/2-1/2


[Site "https://www.chess.com"]

[Event "Titled Tuesday Blitz April 12 Early 2022"]
[White "Shohat, Yotam"]
[Black "Seo, Jung Min"]
[WhiteFideId "2813955"]
[BlackFideId "1734687"]
[WhiteElo "2119"]
[BlackElo "2401"]
[Result "0-1"]
[Round "04"]
[TimeControl "180+1"]
[Date "2022.04.13"]
[WhiteClock "0:00:04"]
[BlackClock "0:00:17"]

1. e4 {[%clk 0:03:00]}  e5 {[%clk 0:02:59]} 2. f4 {[%clk 0:03:00]}  exf4 {[%clk 0:02:59]} 3. Bc4 {[%clk 0:03:00]}  Nf6 {[%clk 0:02:55]} 4. Nc3 {[%clk 0:03:00]}  Nc6 {[%clk 0:02:36]} 5. d4 {[%clk 0:02:54]}  Bb4 {[%clk 0:02:26]} 6. e5 {[%clk 0:02:48]}  Ne4 {[%clk 0:02:26]} 7. Nf3 {[%clk 0:01:45]}  Nxc3 {[%clk 0:02:20]} 8. bxc3 {[%clk 0:01:44]}  Bxc3+ {[%clk 0:02:19]} 9. Bd2 {[%clk 0:01:44]}  Bxa1 {[%clk 0:02:18]} 10. Qxa1 {[%clk 0:01:45]}  d5 {[%clk 0:02:11]} 11. exd6 {[%clk 0:01:43]}  Qxd6 {[%clk 0:02:09]} 12. d5 {[%clk 0:01:43]}  O-O {[%clk 0:01:53]} 13. dxc6 {[%clk 0:01:34]}  Qxc6 {[%clk 0:01:53]} 14. Bd3 {[%clk 0:01:10]}  Re8+ {[%clk 0:01:51]} 15. Kf2 {[%clk 0:01:11]}  Bg4 {[%clk 0:01:33]} 16. Qd4 {[%clk 0:01:04]}  Bxf3 {[%clk 0:01:30]} 17. gxf3 {[%clk 0:01:04]}  Rad8 {[%clk 0:01:28]} 18. Qxf4 {[%clk 0:01:00]}  Rd6 {[%clk 0:01:23]} 19. Rg1 {[%clk 0:00:50]}  Rf6 {[%clk 0:01:22]} 20. Qg4 {[%clk 0:00:49]}  Qb6+ {[%clk 0:01:15]} 21. Kf1 {[%clk 0:00:43]}  g6 {[%clk 0:01:14]} 22. Bc3 {[%clk 0:00:34]}  Rfe6 {[%clk 0:01:10]} 23. Qd4 {[%clk 0:00:24]}  Re1+ {[%clk 0:01:07]} 24. Kf2 {[%clk 0:00:23]}  Rxg1 {[%clk 0:00:58]} 25. Qxb6 {[%clk 0:00:18]}  axb6 {[%clk 0:00:54]} 26. Kxg1 {[%clk 0:00:18]}  Ra8 {[%clk 0:00:51]} 27. Bc4 {[%clk 0:00:16]}  b5 {[%clk 0:00:49]} 28. Bxb5 {[%clk 0:00:12]}  Rxa2 {[%clk 0:00:49]} 29. Bd3 {[%clk 0:00:12]}  c6 {[%clk 0:00:47]} 30. Kf2 {[%clk 0:00:12]}  Ra3 {[%clk 0:00:46]} 31. Bd4 {[%clk 0:00:11]}  Ra4 {[%clk 0:00:44]} 32. Ke3 {[%clk 0:00:12]}  Ra8 {[%clk 0:00:43]} 33. Kd2 {[%clk 0:00:10]}  Rd8 {[%clk 0:00:43]} 34. Kc3 {[%clk 0:00:11]}  Rd5 {[%clk 0:00:42]} 35. Be4 {[%clk 0:00:10]}  Rh5 {[%clk 0:00:41]} 36. Bg1 {[%clk 0:00:09]}  Rh3 {[%clk 0:00:41]} 37. Kc4 {[%clk 0:00:08]}  f5 {[%clk 0:00:37]} 38. Bd3 {[%clk 0:00:08]}  Rxf3 {[%clk 0:00:37]} 39. Kc5 {[%clk 0:00:08]}  Rf4 {[%clk 0:00:33]} 40. Kb6 {[%clk 0:00:03]}  Rb4+ {[%clk 0:00:32]} 41. Kc5 {[%clk 0:00:03]}  Rb1 {[%clk 0:00:32]} 42. Bd4 {[%clk 0:00:03]}  f4 {[%clk 0:00:29]} 43. Kd6 {[%clk 0:00:04]}  Kf7 {[%clk 0:00:25]} 44. Bc4+ {[%clk 0:00:03]}  Ke8 {[%clk 0:00:25]} 45. Be5 {[%clk 0:00:02]}  f3 {[%clk 0:00:23]} 46. Bg3 {[%clk 0:00:03]}  g5 {[%clk 0:00:19]} 47. Ke5 {[%clk 0:00:03]}  g4 {[%clk 0:00:17]} 48. Kf4 {[%clk 0:00:03]}  Rb4 {[%clk 0:00:16]} 49. Kxg4 {[%clk 0:00:03]}  Rxc4+ {[%clk 0:00:17]} 50. Kxf3 {[%clk 0:00:04]}  Rxc2 {[%clk 0:00:17]} 51. Ke4 {[%clk 0:00:04]}  b5 {[%clk 0:00:17]} 52. Kf4 {[%clk 0:00:04]}  Rc4+ {[%clk 0:00:17]} 0-1


[Site "https://www.chess.com"]

[Event "Titled Tuesday Blitz April 12 Early 2022"]
[White "Skytte, Rasmus"]
[Black "Politov, Pavel Y."]
[WhiteFideId "1404210"]
[BlackFideId "24110515"]
[WhiteElo "2430"]
[BlackElo "2090"]
[Result "0-1"]
[Round "04"]
[TimeControl "180+1"]
[Date "2022.04.13"]
[WhiteClock "0:01:52"]
[BlackClock "0:01:17"]

1. e4 {[%clk 0:03:00]}  c5 {[%clk 0:02:57]} 2. Nf3 {[%clk 0:03:00]}  d6 {[%clk 0:02:57]} 3. d4 {[%clk 0:03:00]}  cxd4 {[%clk 0:02:57]} 4. Nxd4 {[%clk 0:03:00]}  Nf6 {[%clk 0:02:58]} 5. Nc3 {[%clk 0:03:00]}  a6 {[%clk 0:02:59]} 6. f3 {[%clk 0:02:56]}  e5 {[%clk 0:02:58]} 7. Nb3 {[%clk 0:02:54]}  Be6 {[%clk 0:02:58]} 8. Be3 {[%clk 0:02:54]}  Be7 {[%clk 0:02:58]} 9. Qd2 {[%clk 0:02:54]}  Nbd7 {[%clk 0:02:59]} 10. O-O-O {[%clk 0:02:54]}  O-O {[%clk 0:02:59]} 11. g4 {[%clk 0:02:53]}  b5 {[%clk 0:03:00]} 12. g5 {[%clk 0:02:53]}  Nh5 {[%clk 0:03:00]} 13. h4 {[%clk 0:02:53]}  Ng3 {[%clk 0:02:43]} 14. Rg1 {[%clk 0:02:48]}  Nxf1 {[%clk 0:02:43]} 15. Rdxf1 {[%clk 0:02:48]}  f5 {[%clk 0:02:30]} 16. Nd5 {[%clk 0:02:31]}  f4 {[%clk 0:02:24]} 17. Nxe7+ {[%clk 0:02:28]}  Qxe7 {[%clk 0:02:24]} 18. Bf2 {[%clk 0:02:23]}  Nc5 {[%clk 0:02:19]} 19. Nxc5 {[%clk 0:02:21]}  dxc5 {[%clk 0:02:19]} 20. Qc3 {[%clk 0:02:18]}  Rfc8 {[%clk 0:02:15]} 21. Qxe5 {[%clk 0:02:14]}  c4 {[%clk 0:01:58]} 22. Qxf4 {[%clk 0:02:10]}  c3 {[%clk 0:01:58]} 23. b3 {[%clk 0:02:07]}  Qa3+ {[%clk 0:01:57]} 24. Kd1 {[%clk 0:02:04]}  Qxa2 {[%clk 0:01:26]} 25. Bd4 {[%clk 0:01:59]}  Rd8 {[%clk 0:01:17]} 26. Qe5 {[%clk 0:01:56]}  Qb1+ {[%clk 0:01:17]} 27. Ke2 {[%clk 0:01:54]}  Qxc2+ {[%clk 0:01:17]} 28. Ke3 {[%clk 0:01:52]}  Qd2# {[%clk 0:01:17]} 0-1


[Site "https://www.chess.com"]